bitfinex-derivatives/quotes_BTCF0:USTF0_20210705
["timestamp","ask_amount","ask_price","bid_price","bid_amount"]
[1625515900692,0.24057544,34110.0,34109.0,0.059]
[1625515901694,0.24057544,34110.0,34109.0,0.07024386]
[1625515902144,0.24057544,34110.0,34109.0,0.12924386]
[1625515905504,0.24057544,34110.0,34109.0,0.07024386]
[1625515906056,0.24057544,34110.0,34109.0,0.059]
[1625515906255,0.24057544,34110.0,34109.0,0.07023562]
[1625515906607,0.24057544,34110.0,34109.0,0.059]
[1625515907358,0.46334544,34110.0,34108.0,0.057]
[1625515907467,0.46334544,34110.0,34106.0,1.52951185]
[1625515907563,0.52234544,34110.0,34104.0,0.24057544]
[1625515907660,0.46334544,34110.0,34104.0,0.29757544]
[1625515907934,0.52234544,34110.0,34104.0,0.29757544]
[1625515908010,0.17279861,34109.0,34104.0,0.29757544]
[1625515908211,0.17279861,34109.0,34104.0,0.24057544]
[1625515908428,0.48115088,34105.0,34101.0,1.53216866]
[1625515908624,0.48115088,34105.0,34102.0,0.06826037]
[1625515908812,0.48115088,34105.0,34102.0,0.057]
[1625515909266,4.0611,34103.0,34102.0,0.057]
[1625515909365,4.0611,34103.0,34101.0,0.01125192]
[1625515909668,4.0611,34103.0,34102.0,0.00347329]
[1625515909967,4.1201,34103.0,34100.0,1.53164154]
[1625515910070,4.1201,34103.0,34093.0,0.24057544]
[1625515910071,4.44505,34103.0,34098.0,1.53186899]
[1625515910268,4.44505,34103.0,34098.0,1.59086899]
[1625515910469,0.48115088,34099.0,34098.0,1.59086899]
[1625515910569,0.48115088,34099.0,34098.0,0.059]
[1625515920192,0.48115088,34099.0,34098.0,0.118]
[1625515926607,0.48115088,34099.0,34098.0,1.13726834]
[1625515927258,0.48115088,34099.0,34098.0,1.14074207]
[1625515927411,0.48115088,34099.0,34098.0,2.32941743]
[1625515929266,0.48115088,34099.0,34098.0,3.68697405]
[1625515932623,0.48115088,34099.0,34098.0,3.92754949]
[1625515933474,0.48115088,34099.0,34098.0,3.93871999]
[1625515934177,0.48115088,34099.0,34098.0,3.92754949]
[1625515934727,0.48115088,34099.0,34098.0,3.93872405]
[1625515935882,0.48115088,34099.0,34098.0,3.92754949]
[1625515936080,0.48115088,34099.0,34098.0,4.43539666]
[1625515936632,0.48115088,34099.0,34098.0,4.44660562]
[1625515938242,0.48115088,34099.0,34098.0,5.97171407]
[1625515947004,0.48115088,34099.0,34098.0,10.61461407]
[1625515951919,0.48115088,34099.0,34098.0,12.31765179]
[1625515952521,0.48115088,34099.0,34098.0,10.61461407]
[1625515955126,0.48115088,34099.0,34098.0,12.3170386]
[1625515956734,0.48115088,34099.0,34098.0,12.99742997]
[1625515964552,0.24057544,34099.0,34098.0,12.99742997]
[1625515964656,0.48115088,34105.0,34098.0,12.99742997]
[1625515964753,0.48115088,34105.0,34099.0,0.057]
[1625515964852,0.48115088,34105.0,34104.0,0.24057544]
[1625515964964,0.48115088,34105.0,34104.0,0.53449544]
[1625515965056,0.48115088,34105.0,34104.0,0.663766]
[1625515965205,0.48115088,34105.0,34104.0,0.66723902]
[1625515965305,0.48115088,34105.0,34104.0,8.67953885]
[1625515965504,0.48115088,34105.0,34104.0,12.66903885]
[1625515970475,0.48115088,34105.0,34104.0,8.67953885]
[1625515970575,0.48115088,34105.0,34104.0,8.43896341]
[1625515970709,0.69317088,34105.0,34104.0,8.37996341]
[1625515970791,0.69317088,34105.0,34104.0,8.08604341]
[1625515970877,0.93374632,34105.0,34104.0,8.08604341]
[1625515971078,5.34234632,34105.0,34104.0,8.08604341]
[1625515971185,5.34234632,34105.0,34104.0,6.38129877]
[1625515971522,5.34234632,34105.0,34104.0,6.32229877]
[1625515971623,5.86213333,34105.0,34104.0,4.77675803]
[1625515971872,5.8795015,34105.0,34104.0,4.77675803]
[1625515972077,6.57212807,34105.0,34104.0,4.77675803]
[1625515972476,7.67027027,34105.0,34104.0,3.41296231]
[1625515972579,7.72927027,34105.0,34104.0,3.41296231]
[1625515972677,7.72927027,34105.0,34104.0,3.40948929]
[1625515972776,10.32766272,34105.0,34104.0,1.19332125]
[1625515973729,10.32766272,34105.0,34104.0,0.85376316]
[1625515974131,10.32766272,34105.0,34104.0,0.51142339]
[1625515974534,10.32766272,34105.0,34104.0,0.51362799]
[1625515974936,10.32766272,34105.0,34104.0,0.5135948]
[1625515975437,10.32766272,34105.0,34104.0,1.1980836]
[1625515975889,8.94186496,34105.0,34104.0,2.22420705]
[1625515977946,10.32723473,34105.0,34104.0,1.1980836]
[1625515978294,10.32723473,34105.0,34104.0,8.36e-05]
[1625515978897,10.32723473,34105.0,34104.0,0.51334706]
[1625515979697,10.32723473,34105.0,34103.0,0.51318924]
[1625515979997,3.63622999,34104.0,34103.0,0.34212616]
[1625515980100,3.69522999,34104.0,34103.0,0.34212616]
[1625515980200,3.7126023,34104.0,34103.0,0.34212616]
[1625515981450,3.7126023,34104.0,34101.0,1.02637848]
[1625515981749,3.7126023,34104.0,34099.0,1.19744156]
[1625515981750,3.63643695,34102.0,34100.0,1.02692506]
[1625515982050,3.69543695,34102.0,34100.0,1.02692506]
[1625515982150,2.25118382,34101.0,34100.0,1.02692506]
[1625515983008,2.49175926,34101.0,34100.0,1.02692506]
[1625515984507,1.27959668,34101.0,34100.0,2.22635191]
[1625515984906,0.24057544,34101.0,34100.0,3.59592685]
[1625515985561,0.58688739,34101.0,34100.0,3.59592685]
[1625515985859,0.24057544,34101.0,34100.0,3.59592685]
[1625515987764,0.24057544,34101.0,34098.0,0.24057544]
[1625515987865,0.24057544,34101.0,34098.0,0.29957544]
[1625515988067,0.24057544,34101.0,34100.0,2.22713077]
[1625515988275,0.24057544,34101.0,34100.0,3.59748111]
[1625515989016,0.58683989,34101.0,34100.0,3.59748111]
[1625515989679,0.24057544,34101.0,34100.0,3.59748111]
[1625515991120,0.24057544,34101.0,34100.0,2.22713077]
[1625515992424,0.24057544,34101.0,34100.0,3.59603731]
[1625515992824,0.58677831,34101.0,34100.0,3.59603731]
[1625515993128,0.24057544,34101.0,34100.0,3.59603731]
[1625515993477,0.58675405,34101.0,34100.0,3.59603731]
[1625515994028,0.24057544,34101.0,34100.0,2.22713077]
[1625515995832,0.58670562,34101.0,34100.0,3.59348196]
[1625515996740,0.24057544,34101.0,34100.0,3.59348196]
[1625515997090,0.58671097,34101.0,34100.0,3.59348196]
[1625515997542,0.58671097,34101.0,34100.0,2.22713077]
[1625515998146,0.58671097,34101.0,34100.0,3.59763254]
[1625515998494,0.24057544,34101.0,34100.0,2.22713077]
[1625515999845,0.25794629,34101.0,34100.0,2.23060494]
[1625516004359,0.31694629,34101.0,34100.0,2.23060494]
[1625516004860,0.31694629,34101.0,34100.0,1.03138068]
[1625516005112,0.25794629,34101.0,34100.0,1.03138068]
[1625516006112,0.31694629,34101.0,34100.0,1.03138068]
[1625516006766,0.25794629,34101.0,34100.0,1.03138068]
[1625516006866,0.31694629,34101.0,34100.0,1.03138068]
[1625516006966,0.25794629,34101.0,34100.0,1.03138068]
[1625516007918,0.31694629,34101.0,34100.0,1.03138068]
[1625516008023,0.25794629,34101.0,34100.0,1.03138068]
[1625516009223,0.31694629,34101.0,34100.0,1.03138068]
[1625516009374,0.65359629,34101.0,34100.0,1.03138068]
[1625516010025,0.59459629,34101.0,34100.0,1.03138068]
[1625516010127,0.65359629,34101.0,34100.0,1.03138068]
[1625516010226,0.59459629,34101.0,34100.0,1.03138068]
[1625516011029,0.65359629,34101.0,34100.0,1.03138068]
[1625516011129,0.59459629,34101.0,34100.0,1.03138068]
[1625516011379,0.65359629,34101.0,34100.0,1.03138068]
[1625516011480,0.59459629,34101.0,34100.0,1.03138068]
[1625516012032,0.65359629,34101.0,34100.0,1.03138068]
[1625516012131,0.59459629,34101.0,34100.0,1.03138068]
[1625516012231,0.65359629,34101.0,34100.0,1.03138068]
[1625516012332,0.59459629,34101.0,34100.0,1.03138068]
[1625516012432,0.65359629,34101.0,34100.0,1.03138068]
[1625516012531,0.59459629,34101.0,34100.0,1.03138068]
[1625516012633,0.59459629,34101.0,34100.0,2.23047086]
[1625516012882,0.65359629,34101.0,34100.0,2.23047086]
[1625516013082,0.59459629,34101.0,34100.0,2.23047086]
[1625516013431,0.65359629,34101.0,34100.0,2.23047086]
[1625516013531,0.59459629,34101.0,34100.0,2.23047086]
[1625516013731,0.65359629,34101.0,34100.0,2.23047086]
[1625516013831,0.59459629,34101.0,34100.0,2.23047086]
[1625516013931,0.65359629,34101.0,34100.0,2.23047086]
[1625516014031,0.59459629,34101.0,34100.0,2.23047086]
[1625516014687,0.65359629,34101.0,34100.0,2.23047086]
[1625516015190,0.59459629,34101.0,34100.0,2.23047086]
[1625516015288,0.59459629,34101.0,34100.0,1.03138068]
[1625516015289,1.63247113,34101.0,34100.0,1.03138068]
[1625516015488,1.69147113,34101.0,34100.0,1.03138068]
[1625516015840,1.63247113,34101.0,34100.0,1.03138068]
[1625516016138,1.69147113,34101.0,34100.0,1.03138068]
[1625516016439,1.63247113,34101.0,34100.0,1.03138068]
[1625516018293,1.69147113,34101.0,34100.0,1.03138068]
[1625516018643,1.63247113,34101.0,34100.0,1.03138068]
[1625516018897,1.63247113,34101.0,34100.0,0.00347417]
[1625516019400,1.63247113,34101.0,34100.0,1.03158155]
[1625516019696,1.69147113,34101.0,34100.0,1.03158155]
[1625516020146,1.63247113,34101.0,34100.0,1.03158155]
[1625516020448,1.69147113,34101.0,34100.0,1.03158155]
[1625516020800,2.90258146,34101.0,34100.0,0.00347417]
[1625516023358,2.90258146,34101.0,34100.0,1.03319007]
[1625516025258,2.90258146,34101.0,34100.0,0.00347417]
[1625516025560,2.90258146,34101.0,34100.0,1.03350683]
[1625516025659,2.66200602,34101.0,34100.0,1.03350683]
[1625516026120,3.62430778,34101.0,34100.0,1.03350683]
[1625516026613,3.56530778,34101.0,34100.0,1.03350683]
[1625516026914,3.62430778,34101.0,34100.0,1.03350683]
[1625516027015,3.56530778,34101.0,34100.0,1.03350683]
[1625516027120,3.62430778,34101.0,34100.0,1.03350683]
[1625516027216,3.56530778,34101.0,34100.0,1.03350683]
[1625516027568,3.62430778,34101.0,34100.0,1.03350683]
[1625516028018,5.01036137,34101.0,34100.0,1.03350683]
[1625516029469,5.01036137,34101.0,34100.0,2.23764774]
[1625516029571,4.95136137,34101.0,34100.0,2.23764774]
[1625516029672,5.01036137,34101.0,34100.0,2.23764774]
[1625516030080,4.95136137,34101.0,34100.0,2.23764774]
[1625516030971,5.01036137,34101.0,34100.0,2.23764774]
[1625516033679,4.95136137,34101.0,34100.0,2.23764774]
[1625516033777,5.01036137,34101.0,34100.0,2.23764774]
[1625516033878,4.95136137,34101.0,34100.0,2.23764774]
[1625516034532,9.29306137,34101.0,34100.0,2.23764774]
[1625516035433,9.29306137,34101.0,34100.0,2.56949774]
[1625516035534,9.29306137,34101.0,34100.0,3.94587063]
[1625516038386,9.29306137,34101.0,34100.0,4.63430178]
[1625516038987,9.98718297,34101.0,34100.0,4.63430178]
[1625516039799,8.60112938,34101.0,34100.0,4.63430178]
[1625516041002,9.98924602,34101.0,34100.0,4.63430178]
[1625516042607,5.65802261,34101.0,34100.0,0.33532417]
[1625516042704,5.65802261,34101.0,34100.0,0.00347417]
[1625516043007,9.9960216,34101.0,34100.0,4.3032761]
[1625516043106,9.9960216,34101.0,34100.0,4.29980193]
[1625516043308,9.9960216,34101.0,34100.0,4.30327627]
[1625516046012,8.6079105,34101.0,34100.0,4.30327627]
[1625516046364,8.6079105,34101.0,34100.0,4.31465858]
[1625516047065,8.6079105,34101.0,34100.0,4.30327627]
[1625516047264,9.99614465,34101.0,34100.0,4.30327627]
[1625516047466,9.99614465,34101.0,34100.0,4.31466342]
[1625516047668,8.6079105,34101.0,34100.0,4.31466342]
[1625516052576,9.99640374,34101.0,34100.0,4.31466342]
[1625516053580,9.99640374,34101.0,34100.0,4.30327627]
[1625516058841,10.05540374,34101.0,34100.0,4.30327627]
[1625516060947,10.05540374,34101.0,34100.0,2.92733965]
[1625516061399,11.61781563,34101.0,34100.0,2.92733965]
[1625516064059,10.05540374,34101.0,34100.0,2.92733965]
[1625516064409,11.61771851,34101.0,34100.0,2.92733965]
[1625516065561,11.61771851,34101.0,34100.0,2.92386531]
[1625516067267,11.61771851,34101.0,34100.0,1.71992077]
[1625516067668,11.61771851,34101.0,34100.0,2.93264857]
[1625516068623,12.13853267,34101.0,34100.0,3.45254144]
[1625516069227,12.13853267,34101.0,34100.0,2.23981364]
[1625516069449,12.19753267,34101.0,34100.0,1.52781364]
[1625516069571,12.19753267,34101.0,34100.0,1.52471364]
[1625516069663,12.23228182,34101.0,34100.0,1.51931364]
[1625516069926,12.23228182,34101.0,34100.0,1.51481364]
[1625516070022,12.23228182,34101.0,34100.0,1.49781364]
[1625516070123,12.23228182,34101.0,34100.0,1.49371364]
[1625516070224,12.23228182,34101.0,34100.0,1.48971364]
[1625516070428,13.96685791,34101.0,34097.0,0.43391255]
[1625516070624,0.05213346,34100.0,34097.0,0.43391255]
[1625516070824,0.17013346,34100.0,34097.0,0.43391255]
[1625516070933,6.41483747,34098.0,34096.0,0.52069506]
[1625516071024,6.41483747,34098.0,34095.0,0.43394779]
[1625516071126,6.53283747,34098.0,34095.0,0.43394779]
[1625516071224,0.05213388,34097.0,34095.0,0.43394779]
[1625516071325,0.17013388,34097.0,34095.0,0.43394779]
[1625516071424,0.13537796,34097.0,34095.0,0.43394779]
[1625516071624,4.67650859,34096.0,34094.0,0.43352613]
[1625516071724,4.75288628,34096.0,34094.0,0.43352613]
[1625516071825,4.81188628,34096.0,34094.0,0.43352613]
[1625516072025,0.01737774,34095.0,34094.0,0.43352613]
[1625516072128,4.75117153,34095.0,34094.0,0.08670523]
[1625516072226,4.81017153,34095.0,34094.0,0.08670523]
[1625516072526,5.29132241,34095.0,34094.0,0.08670523]
[1625516073127,5.29132241,34095.0,34093.0,0.34681795]
[1625516073128,5.29132241,34095.0,34093.0,0.0866465]
[1625516073529,4.68911864,34094.0,34093.0,0.0866465]
[1625516073630,5.06124864,34094.0,34093.0,0.0866465]
[1625516074282,5.06124864,34094.0,34093.0,0.43322934]
[1625516074529,5.30182408,34094.0,34093.0,0.43322934]
[1625516076440,3.74463484,34094.0,34093.0,0.5196228]
[1625516076534,3.49050484,34094.0,34093.0,0.5196228]
[1625516077535,3.74516484,34094.0,34093.0,0.5196228]
[1625516077889,3.74516484,34094.0,34093.0,0.08657589]
[1625516079390,3.74516484,34094.0,34093.0,0.43285196]
[1625516079490,3.49050484,34094.0,34093.0,0.43285196]
[1625516080041,3.49050484,34094.0,34093.0,0.34627607]
[1625516080541,3.49050484,34094.0,34093.0,0.43282762]
[1625516081043,3.49050484,34094.0,34093.0,0.08655155]
[1625516082598,3.49050484,34094.0,34092.0,0.4327125]
[1625516082999,3.10615615,34093.0,34092.0,0.4327125]
[1625516083099,3.43919381,34093.0,34092.0,0.4327125]
[1625516083199,3.55719381,34093.0,34092.0,0.4327125]
[1625516083452,3.55719381,34093.0,34092.0,0.08652616]
[1625516084660,3.55719381,34093.0,34091.0,0.0865022]
[1625516084859,0.24057544,34092.0,34091.0,0.0865022]
[1625516084957,0.29957544,34092.0,34091.0,0.0865022]
[1625516085207,3.4214447,34092.0,34091.0,0.0865022]
[1625516085710,4.415,34091.0,34090.0,0.08650314]
[1625516085907,4.474,34091.0,34090.0,0.08650314]
[1625516086008,7.59429752,34091.0,34090.0,0.43244029]
[1625516086309,7.59429752,34091.0,34090.0,0.08650314]
[1625516087760,7.59429752,34091.0,34089.0,0.4323835]
[1625516088062,0.0173786,34090.0,34089.0,0.4323835]
[1625516088163,1.79946624,34090.0,34089.0,0.4323835]
[1625516088914,2.04004168,34090.0,34089.0,0.4323835]
[1625516089518,3.41838333,34090.0,34088.0,0.43230276]
[1625516089922,3.41838333,34090.0,34088.0,0.08646055]
[1625516089923,1.74005095,34089.0,34088.0,0.08646055]
[1625516090018,1.79905095,34089.0,34088.0,0.08646055]
[1625516090919,2.03962639,34089.0,34088.0,0.08646055]
[1625516091473,2.03962639,34089.0,34087.0,0.48921795]
[1625516091773,0.01737951,34088.0,34087.0,0.48921795]
[1625516091873,0.53377929,34088.0,34087.0,0.43221795]
[1625516091975,0.59277929,34088.0,34087.0,0.43221795]
[1625516092427,0.59277929,34088.0,34087.0,0.08644049]
[1625516092875,1.79724535,34088.0,34087.0,0.08644049]
[1625516094478,1.79724535,34088.0,34086.0,0.43208518]
[1625516094934,0.53359659,34087.0,34086.0,0.08640582]
[1625516095032,0.77417203,34087.0,34086.0,0.08640582]
[1625516095130,0.83317203,34087.0,34086.0,0.08640582]
[1625516095431,2.03754377,34087.0,34085.0,0.48900646]
[1625516095528,2.02016367,34087.0,34085.0,0.48900646]
[1625516095729,0.29957544,34087.0,34086.0,0.08638752]
[1625516096031,0.31695547,34087.0,34086.0,0.08638752]
[1625516096130,0.83332883,34087.0,34086.0,0.08638752]
[1625516096732,0.83332883,34087.0,34085.0,0.43199145]
[1625516096831,4.4604,34086.0,34085.0,0.43199145]
[1625516096931,4.68193,34086.0,34085.0,0.43199145]
[1625516097030,4.92250544,34086.0,34085.0,0.43199145]
[1625516097130,4.99888585,34086.0,34085.0,0.43199145]
[1625516097231,5.51528739,34086.0,34085.0,0.08638619]
[1625516097685,5.51528739,34086.0,34084.0,0.43192917]
[1625516098034,4.99888585,34086.0,34085.0,0.08637263]
[1625516098236,4.98150544,34086.0,34085.0,0.08637263]
[1625516098385,5.4987318,34086.0,34084.0,0.43191633]
[1625516098485,5.5161123,34086.0,34084.0,0.43191633]
[1625516098685,0.01738041,34085.0,34084.0,0.48891633]
[1625516098786,0.01738041,34085.0,34084.0,0.43191633]
[1625516098885,0.59361964,34085.0,34084.0,0.43191633]
[1625516099287,0.59361964,34085.0,34084.0,0.34554296]
[1625516099591,0.59361964,34085.0,34084.0,0.43191538]
[1625516100137,0.59361964,34085.0,34084.0,0.08637242]
[1625516100641,1.62795683,34085.0,34084.0,0.43182686]
[1625516101039,0.59361964,34085.0,34084.0,0.86363473]
[1625516101288,0.59361964,34085.0,34084.0,0.92263473]
[1625516101692,0.59361964,34085.0,34084.0,0.57718029]
[1625516102796,0.93821755,34085.0,34084.0,0.57718029]
[1625516103148,0.42097832,34085.0,34084.0,0.57718029]
[1625516103896,0.42097832,34085.0,34084.0,0.81725029]
[1625516104000,0.42097832,34085.0,34084.0,0.82072616]
[1625516104252,0.16250509,34085.0,34084.0,1.85704763]
[1625516104550,0.5064824,34085.0,34084.0,0.82072616]
[1625516104750,0.4474824,34085.0,34084.0,0.82072616]
[1625516104851,1.03160523,34088.0,34084.0,1.85706998]
[1625516104953,1.03160523,34088.0,34084.0,1.91406998]
[1625516105052,1.20351078,34090.0,34087.0,0.72172632]
[1625516105153,1.20351078,34090.0,34087.0,0.77872632]
[1625516105251,1.20351078,34090.0,34087.0,0.83772632]
[1625516105352,1.0327066,34094.0,34087.0,3.14191002]
[1625516105453,1.0327066,34094.0,34089.0,3.7931]
[1625516105582,1.0327066,34094.0,34090.0,0.057]
[1625516105659,0.01737581,34093.0,34090.0,0.057]
[1625516105750,0.01737581,34093.0,34090.0,0.17847516]
[1625516105851,0.01737581,34093.0,34091.0,1.2088603]
[1625516105950,0.01737581,34093.0,34091.0,1.56513525]
[1625516106051,0.01737581,34093.0,34091.0,1.62413525]
[1625516106151,1.20422149,34098.0,34091.0,1.62413525]
[1625516106251,1.20422149,34098.0,34092.0,0.00347485]
[1625516106352,1.20422149,34098.0,34092.0,0.12147485]
[1625516106453,2.28462856,34100.0,34093.0,0.057]
[1625516106454,0.9084,34100.0,34093.0,0.057]
[1625516106653,5.2213,34098.0,34093.0,0.116]
[1625516106753,5.23867451,34098.0,34093.0,0.116]
[1625516106855,5.23867451,34098.0,34094.0,1.20892875]
[1625516106954,5.23867451,34098.0,34095.0,0.057]
[1625516107055,0.01737451,34097.0,34095.0,0.057]
[1625516107258,5.2213,34098.0,34095.0,0.057]
[1625516107807,5.2213,34098.0,34095.0,0.116]
[1625516108107,5.2213,34098.0,34095.0,1.26586315]
[1625516108213,5.2213,34098.0,34095.0,1.32486315]
[1625516108308,5.2213,34098.0,34095.0,1.26586315]
[1625516108410,5.2213,34098.0,34095.0,1.32486315]
[1625516108510,5.2213,34098.0,34095.0,1.26586315]
[1625516108609,5.2213,34098.0,34095.0,1.32486315]
[1625516108709,5.2213,34098.0,34095.0,1.26586315]
[1625516109009,5.2213,34098.0,34097.0,0.24057544]
[1625516109109,5.2803,34098.0,34097.0,0.24057544]
[1625516109511,5.3393,34098.0,34097.0,0.24057544]
[1625516109614,5.35667478,34098.0,34097.0,0.24057544]
[1625516110669,5.35667478,34098.0,34096.0,0.057]
[1625516110767,5.3393,34098.0,34092.0,0.057]
[1625516110866,5.55092,34098.0,34092.0,0.057]
[1625516110964,5.56829812,34098.0,34092.0,0.057]
[1625516111068,0.24057544,34093.0,34092.0,0.057]
[1625516111164,0.29957544,34093.0,34087.0,1.69079063]
[1625516111264,0.35857544,34093.0,34087.0,1.69079063]
[1625516111465,0.35857544,34093.0,34087.0,0.48115088]
[1625516111466,1.21272738,34092.0,34087.0,0.48115088]
[1625516111565,3.8166,34091.0,34087.0,0.48115088]
[1625516111766,4.28524923,34091.0,34087.0,0.48115088]
[1625516112020,4.26787,34091.0,34087.0,0.48115088]
[1625516112316,0.01737921,34090.0,34087.0,0.48115088]
[1625516112417,0.13537921,34090.0,34087.0,0.48115088]
[1625516112518,1.32972805,34090.0,34087.0,0.48115088]
[1625516112817,0.01737946,34089.0,34087.0,0.48115088]
[1625516112917,0.07637946,34089.0,34087.0,0.48115088]
[1625516113017,0.24057544,34088.0,34087.0,0.48115088]
[1625516113119,0.29957544,34088.0,34087.0,0.48115088]
[1625516113217,0.35857544,34088.0,34087.0,0.48115088]
[1625516113570,0.37595534,34088.0,34087.0,0.48115088]
[1625516115223,1.56935255,34088.0,34087.0,0.48115088]
[1625516117276,0.35857544,34088.0,34087.0,0.48115088]
[1625516118828,1.5529724,34088.0,34087.0,0.48115088]
[1625516118928,1.57035238,34088.0,34087.0,0.48115088]
[1625516121182,1.5529724,34088.0,34087.0,0.48115088]
[1625516122185,1.4939724,34088.0,34087.0,0.48115088]
[1625516122285,1.5529724,34088.0,34087.0,0.48115088]
[1625516122588,1.4939724,34088.0,34087.0,0.48115088]
[1625516122943,0.29957544,34088.0,34087.0,0.48115088]
[1625516123541,0.35857544,34088.0,34087.0,0.48115088]
[1625516123941,1.55227467,34088.0,34087.0,0.48115088]
[1625516126147,1.56965478,34088.0,34087.0,0.48115088]
[1625516127996,2.93392189,34088.0,34087.0,0.48115088]
[1625516129564,2.93392189,34088.0,34083.0,1.50965197]
[1625516129657,2.93392189,34088.0,34086.0,0.69286274]
[1625516129658,3.61647907,34088.0,34086.0,0.69286274]
[1625516129899,0.01738132,34087.0,34086.0,0.69286274]
[1625516129999,0.01738132,34087.0,34083.0,0.93348067]
[1625516130000,3.25705299,34087.0,34083.0,0.93348067]
[1625516130103,3.31605299,34087.0,34083.0,0.93348067]
[1625516130198,0.01738159,34086.0,34083.0,0.93348067]
[1625516130298,0.07638159,34086.0,34083.0,0.93348067]
[1625516130401,1.87564249,34084.0,34083.0,0.93348067]
[1625516130502,1.93464249,34084.0,34083.0,0.93348067]
[1625516130600,1.99364249,34084.0,34083.0,0.93348067]
[1625516130901,6.53734249,34084.0,34083.0,0.93348067]
[1625516131201,6.77791793,34084.0,34083.0,0.93348067]
[1625516131602,5.58437375,34084.0,34083.0,0.93348067]
[1625516132003,5.58437375,34084.0,34083.0,2.14588369]
[1625516132504,5.58437375,34084.0,34083.0,0.93348067]
[1625516133207,6.77822368,34084.0,34083.0,0.93348067]
[1625516133758,5.58437375,34084.0,34083.0,0.93348067]
[1625516134310,6.77852421,34084.0,34083.0,0.93348067]
[1625516135513,7.80116644,34084.0,34083.0,0.93348067]
[1625516136470,7.81854806,34084.0,34083.0,0.93348067]
[1625516138871,7.81854806,34084.0,34083.0,0.24057544]
[1625516138872,9.18143377,34084.0,34083.0,0.24057544]
[1625516140023,7.81854806,34084.0,34083.0,0.24057544]
[1625516141526,7.81854806,34084.0,34083.0,0.93319269]
[1625516142278,7.81854806,34084.0,34083.0,1.97206441]
[1625516142880,6.6243976,34084.0,34083.0,1.97206441]
[1625516143229,7.81649091,34084.0,34083.0,0.93319269]
[1625516147940,7.81649091,34084.0,34083.0,0.24057544]
[1625516148241,9.17818053,34084.0,34083.0,0.4137173]
[1625516148441,8.93760509,34084.0,34083.0,0.17314186]
[1625516149442,7.57591547,34084.0,34082.0,0.6925672]
[1625516149543,0.48115088,34083.0,34082.0,0.93314264]
[1625516149746,0.59915088,34083.0,34082.0,0.93314264]
[1625516149894,3.49345296,34083.0,34082.0,0.93314264]
[1625516149994,3.5108353,34083.0,34082.0,0.93314264]
[1625516154962,3.5108353,34083.0,34082.0,0.93661911]
[1625516155209,3.5108353,34083.0,34082.0,0.93314264]
[1625516155460,2.31910391,34083.0,34082.0,0.93314264]
[1625516155860,3.50883305,34083.0,34082.0,0.24057544]
[1625516156611,3.54360028,34083.0,34082.0,0.24057544]
[1625516157163,4.90322572,34083.0,34082.0,0.41368763]
[1625516157366,4.86845849,34083.0,34082.0,0.41368763]
[1625516158462,4.90322577,34083.0,34082.0,0.41368763]
[1625516158964,4.86845849,34083.0,34082.0,0.41368763]
[1625516159517,3.50883305,34083.0,34082.0,0.41368763]
[1625516159818,3.78052305,34083.0,34082.0,0.41368763]
[1625516162472,3.78052305,34083.0,34082.0,0.17311219]
[1625516162572,3.78052305,34083.0,34082.0,0.16911219]
[1625516162673,3.81529106,34083.0,34082.0,0.16911219]
[1625516163023,3.81529106,34083.0,34079.0,0.69230047]
[1625516163024,5.17438273,34083.0,34079.0,0.69230047]
[1625516163224,1.69882503,34080.0,34079.0,0.69230047]
[1625516163425,1.81682503,34080.0,34079.0,0.69230047]
[1625516163728,1.83420906,34080.0,34079.0,0.69577728]
[1625516165584,1.77520906,34080.0,34079.0,0.69577728]
[1625516165791,1.77520906,34080.0,34079.0,1.73414671]
[1625516165985,1.83420906,34080.0,34079.0,1.73414671]
[1625516166086,1.77520906,34080.0,34079.0,1.73414671]
[1625516166438,0.75594801,34080.0,34079.0,1.73414671]
[1625516166787,0.75594801,34080.0,34079.0,2.94640797]
[1625516166987,0.81494801,34080.0,34079.0,2.94640797]
[1625516167087,0.75594801,34080.0,34079.0,2.94640797]
[1625516167188,0.81494801,34080.0,34079.0,2.94640797]
[1625516167487,1.83332267,34080.0,34079.0,2.94640797]
[1625516168043,1.77432267,34080.0,34079.0,2.94640797]
[1625516168893,1.77432267,34080.0,34079.0,3.18071797]
[1625516169546,1.77432267,34080.0,34079.0,4.56752283]
[1625516170148,1.83332267,34080.0,34079.0,4.56752283]
[1625516170400,1.83332267,34080.0,34079.0,3.18071797]
[1625516170552,1.83332267,34080.0,34079.0,2.94640797]
[1625516170750,3.0278241,34080.0,34079.0,4.33442762]
[1625516170949,2.00944944,34080.0,34079.0,0.00347681]
[1625516171050,0.13538403,34080.0,34079.0,0.00347681]
[1625516171151,0.07638403,34080.0,34079.0,0.00347681]
[1625516171352,3.03702227,34080.0,34079.0,4.34098939]
[1625516171502,2.97802227,34080.0,34079.0,4.34098939]
[1625516172304,3.03702227,34080.0,34079.0,4.34098939]
[1625516172555,2.97802227,34080.0,34079.0,4.34098939]
[1625516172755,3.03702227,34080.0,34079.0,4.34098939]
[1625516175061,3.03702227,34080.0,34079.0,2.95298536]
[1625516175410,4.4023728,34080.0,34079.0,2.95298536]
[1625516175813,3.03702227,34080.0,34079.0,4.34120032]
[1625516175962,2.97802227,34080.0,34079.0,4.34120032]
[1625516176163,2.91902227,34080.0,34079.0,4.62186032]
[1625516176265,2.91902227,34080.0,34079.0,4.68086032]
[1625516176367,2.91902227,34080.0,34079.0,4.69234342]
[1625516176663,0.01738403,34080.0,34079.0,6.25395544]
[1625516177116,0.6842075,34082.0,34079.0,6.25395544]
[1625516177216,0.6842075,34082.0,34079.0,6.31095544]
[1625516177416,0.6842075,34082.0,34080.0,0.01148132]
[1625516177516,0.6842075,34082.0,34080.0,0.07048132]
[1625516177619,0.01738058,34081.0,34080.0,0.06247612]
[1625516177718,0.01738058,34081.0,34080.0,0.30305156]
[1625516177819,0.01738058,34081.0,34080.0,0.31453293]
[1625516177919,0.6842075,34082.0,34080.0,0.31453293]
[1625516178019,0.6842075,34082.0,34081.0,0.01148142]
[1625516178121,0.6842075,34082.0,34081.0,0.01495748]
[1625516178220,0.6842075,34082.0,34081.0,0.07395748]
[1625516178377,0.70158779,34082.0,34081.0,0.07395748]
[1625516178623,0.70158779,34082.0,34081.0,5.97378856]
[1625516179175,0.01738029,34082.0,34081.0,5.91478856]
[1625516179322,0.01738029,34082.0,34081.0,5.97378856]
[1625516179624,0.70174601,34082.0,34081.0,5.97378856]
[1625516180776,0.68436572,34082.0,34081.0,5.97378856]
[1625516180878,1.16640674,34083.0,34082.0,0.01148071]
[1625516181078,1.16640674,34083.0,34082.0,0.07395664]
[1625516181328,1.16640674,34083.0,34082.0,5.9727383]
[1625516181579,1.18378662,34083.0,34082.0,5.9727383]
[1625516181680,2.21262524,34083.0,34082.0,4.4112961]
[1625516181977,1.18378662,34083.0,34082.0,5.97274564]
[1625516182378,1.16640674,34083.0,34082.0,5.97274564]
[1625516182930,1.18378691,34083.0,34082.0,5.97274564]
[1625516183030,2.21228229,34083.0,34082.0,4.4112961]
[1625516184280,2.21228229,34083.0,34082.0,4.39633946]
[1625516185283,1.37117834,34085.0,34082.0,4.39633946]
[1625516185384,0.47066749,34089.0,34082.0,4.46482105]